fUSD/lending_fUSD_20260217
["ID","MTS","AMOUNT","RATE_DAILY","PERIOD"]
[405774433,1771294944765,-250.0,0.00010836,2]
[405774434,1771294944792,-500.0,0.00010873,2]
[405774435,1771294951464,290485.92727266,0.00018,30]
[405774436,1771295003209,500.0,0.000107,2]
[405774437,1771295033531,-250.0,0.00010945,2]
[405774438,1771295033559,-300.0,0.00010973,2]
[405774439,1771295033586,-500.0,0.00011,2]
[405774440,1771295033627,-300.0,0.00011056,2]
[405774441,1771295033665,-300.0,0.00011099,2]
[405774442,1771295033700,-1202.64158757,0.000111,2]
[405774443,1771295033734,-1676.33030198,0.000111,2]
[405774444,1771295033766,-1834.22654011,0.000111,2]
[405774445,1771295033798,-942.12277825,0.000111,2]
[405774448,1771295125617,1030.83794795,0.000108,2]
[405774449,1771295133955,795.12205205,0.00010296,2]
[405774450,1771295154961,1098.75886513,0.000111,3]
[405774451,1771295155008,1525.70035444,0.000111,3]
[405774452,1771295155068,1668.01418421,0.000111,3]
[405774453,1771295155121,1810.32801398,0.000111,3]
[405774457,1771295160807,5002.50400559,8e-05,2]
[405774467,1771295303936,1032.22775757,0.000109,3]
[405774468,1771295304000,1429.23024848,0.000109,3]
[405774469,1771295304045,1561.56441212,0.000109,3]
[405774470,1771295304102,1693.89857576,0.000109,3]
[405774476,1771295397872,150.0,0.00011925,120]
[405774477,1771295404887,10000.0,0.00018,30]
[405774478,1771295427285,1000.0,0.00018,30]
[405774499,1771295431712,-609.8984744,0.0001,2]
[405774516,1771295438663,-994.95093998,0.0001,2]
[405774517,1771295438679,-332.14022582,0.0001,2]
[405774518,1771295438690,-696.03485661,0.0001,2]
[405774519,1771295438708,-81.14792128,0.0001,2]
[405774520,1771295438719,-1106.60291869,0.00010296,2]
[405774521,1771295438732,-378.29286825,0.00010296,2]
[405774522,1771295438755,-8199.12932782,0.00010296,2]
[405774524,1771295439870,-801.04957216,0.00010296,2]
[405774525,1771295440033,-13099.43824368,0.00010296,2]
[405774526,1771295440044,-250.0,0.00010571,2]
[405774527,1771295440054,-500.0,0.00010845,2]
[405774528,1771295440064,-6034.81891893,0.00011,2]
[405774529,1771295440074,-325.35242324,0.00011,2]
[405774530,1771295440085,-193.12296274,0.00011,2]
[405774531,1771295440094,-340.81335532,0.00011,2]
[405774532,1771295440103,-400.63878582,0.00011,2]
[405774533,1771295440112,-5147.50813388,0.00011,2]
[405774534,1771295440122,-250.0,0.00011,2]
[405774535,1771295440131,-300.0,0.00011,2]
[405774536,1771295440140,-151.0,0.00011096,2]
[405774537,1771295440149,-500.0,0.00011098,2]
[405774538,1771295440158,-577.28785722,0.00011098,2]
[405774539,1771295440167,-500.0,0.00011098,2]
[405774540,1771295440181,-500.0,0.00011098,2]
[405774541,1771295440191,-500.0,0.00011098,2]
[405774543,1771295440202,-500.0,0.00011098,2]
[405774545,1771295440212,-500.0,0.00011098,2]
[405774546,1771295440222,-500.0,0.00011098,2]
[405774549,1771295440232,-500.0,0.00011098,2]
[405774551,1771295440242,-500.0,0.00011098,2]
[405774553,1771295440252,-500.0,0.00011098,2]
[405774555,1771295440262,-550.77300573,0.00011098,2]
[405774556,1771295440273,-562.38554082,0.00011098,2]
[405774557,1771295440282,-500.0,0.00011098,2]
[405774558,1771295440293,-500.0,0.00011098,2]
[405774559,1771295440303,-500.0,0.00011098,2]
[405774560,1771295440314,-565.83656901,0.00011098,2]
[405774561,1771295440325,-500.0,0.00011098,2]
[405774562,1771295440335,-500.0,0.00011098,2]
[405774563,1771295440345,-500.0,0.00011098,2]
[405774564,1771295440355,-500.0,0.00011098,2]
[405774565,1771295440365,-500.0,0.00011098,2]
[405774566,1771295440375,-500.0,0.00011098,2]
[405774567,1771295440384,-500.0,0.00011098,2]
[405774568,1771295440394,-395.8150033,0.00011098,2]
[405774569,1771295440403,-510.27609923,0.00011098,2]
[405774570,1771295440413,-315.40881193,0.00011098,2]
[405774571,1771295440423,-500.0,0.00011098,2]
[405774572,1771295440434,-500.0,0.00011098,2]
[405774573,1771295440443,-500.0,0.00011098,2]
[405774574,1771295440454,-500.0,0.00011098,2]
[405774575,1771295440464,-500.0,0.00011098,2]
[405774576,1771295440474,-500.0,0.00011098,2]
[405774577,1771295440484,-500.0,0.00011098,2]
[405774578,1771295440494,-500.0,0.00011098,2]
[405774579,1771295440504,-500.0,0.00011098,2]
[405774580,1771295440514,-500.0,0.00011098,2]
[405774581,1771295440524,-500.0,0.00011098,2]
[405774582,1771295440534,-500.0,0.00011098,2]
[405774583,1771295440549,-500.0,0.00011098,2]
[405774584,1771295440560,-500.0,0.00011098,2]
[405774585,1771295440571,-500.0,0.00011098,2]
[405774586,1771295440581,-500.0,0.00011098,2]
[405774587,1771295440592,-500.0,0.00011098,2]
[405774588,1771295440603,-500.0,0.00011098,2]
[405774589,1771295440613,-500.0,0.00011098,2]
[405774590,1771295440624,-500.0,0.00011098,2]
[405774591,1771295440636,-500.0,0.00011098,2]
[405774592,1771295440649,-500.0,0.00011098,2]
[405774593,1771295440659,-500.0,0.00011098,2]
[405774594,1771295440670,-500.0,0.00011098,2]
[405774595,1771295440681,-500.0,0.00011098,2]
[405774596,1771295440691,-500.0,0.00011098,2]
[405774597,1771295440704,-500.0,0.00011098,2]
[405774598,1771295440715,-500.0,0.00011098,2]
[405774599,1771295440726,-500.0,0.00011098,2]
[405774600,1771295440736,-500.0,0.00011098,2]
[405774601,1771295440747,-500.0,0.00011098,2]
[405774602,1771295440758,-500.0,0.00011098,2]
[405774603,1771295440768,-500.0,0.00011098,2]
[405774604,1771295440777,-500.0,0.00011098,2]
[405774605,1771295440787,-500.0,0.00011098,2]
[405774606,1771295440797,-500.0,0.00011098,2]
[405774607,1771295440807,-500.0,0.00011098,2]
[405774608,1771295440817,-500.0,0.00011098,2]
[405774609,1771295440827,-500.0,0.00011098,2]
[405774610,1771295440838,-500.0,0.00011098,2]
[405774611,1771295440848,-500.0,0.00011098,2]
[405774612,1771295440859,-500.0,0.00011098,2]
[405774613,1771295440870,-500.0,0.00011098,2]
[405774614,1771295440881,-500.0,0.00011098,2]
[405774615,1771295440891,-500.0,0.00011098,2]
[405774616,1771295440907,-500.0,0.00011098,2]
[405774617,1771295440918,-500.0,0.00011098,2]
[405774618,1771295440928,-500.0,0.00011098,2]
[405774619,1771295440939,-500.0,0.00011098,2]
[405774620,1771295440950,-500.0,0.00011098,2]
[405774621,1771295440960,-332.8766985,0.00011098,2]
[405774622,1771295440971,-500.0,0.00011098,2]
[405774623,1771295440982,-263.42538756,0.00011098,2]
[405774624,1771295440992,-3196648.20061185,0.00011099,2]
[405774625,1771295441016,-454.69056005,0.00011099,2]
[405774632,1771295442956,-4922.5228732,0.00011099,2]
[405774650,1771295586723,222.0,0.00020299,120]
[405774651,1771295586907,473.66844052,0.0001,3]
[405774652,1771295587016,619.31923876,0.0001,3]
[405774653,1771295587073,667.86950484,0.0001,3]
[405774654,1771295587124,716.41977092,0.0001,3]
[405774655,1771295682122,333.0,0.00018,30]
[405774656,1771295695814,188.0,0.00018,30]
[405774657,1771296091053,-250.0,0.00010167,2]
[405774658,1771296091074,-2795.38,0.00010177,2]
[405774659,1771296091095,-150.0,0.00010194,2]
[405774660,1771296091117,-1200.0,0.00010194,2]
[405774661,1771296091139,-457.06446962,0.00010195,2]
[405774662,1771296091159,-362.1439,0.00010196,2]
[405774663,1771296091181,-820.17174,0.00010744,2]
[405774664,1771296091202,-340.81335532,0.00010898,2]
[405774665,1771296091224,-185.27641314,0.00010898,2]
[405774666,1771296091246,-632.57651021,0.00010899,2]
[405774667,1771296091268,-682.09013891,0.000109,2]
[405774668,1771296105033,500.0,9.944e-05,2]
[405774669,1771296121211,315.1270675,0.00010891,2]
[405774670,1771296122969,276.84604166,0.00010898,2]
[405774671,1771296125866,13150.11282288,0.00010095,2]
[405774672,1771296171486,-151.0,0.00010092,2]
[405774673,1771296171508,-151.0,0.00010092,2]
[405774674,1771296171530,-21815.60245924,0.00010095,2]
[405774691,1771296631779,-1200.0,9.993e-05,2]
[405774692,1771296631790,-300.0,9.993e-05,2]
[405774693,1771296631800,-437.49990834,9.994e-05,2]
[405774694,1771296631810,-395.82108592,9.994e-05,2]
[405774700,1771296637887,-104.17891408,9.994e-05,2]
[405774701,1771296637897,-500.0,9.994e-05,2]
[405774702,1771296637907,-171.39912644,9.994e-05,2]
[405774703,1771296637927,-328.60087356,9.994e-05,2]
[405774704,1771296637937,-500.0,9.994e-05,2]
[405774705,1771296637946,-379.80795557,9.994e-05,2]
[405774706,1771296637956,-500.0,9.994e-05,2]
[405774707,1771296637966,-562.38554082,9.994e-05,2]
[405774708,1771296637976,-510.27609923,9.994e-05,2]
[405774709,1771296637986,-500.0,9.994e-05,2]
[405774710,1771296637996,-500.0,9.994e-05,2]
[405774711,1771296638006,-500.0,9.994e-05,2]
[405774712,1771296638017,-500.0,9.994e-05,2]
[405774713,1771296638030,-500.0,9.994e-05,2]
[405774714,1771296638040,-500.0,9.994e-05,2]
[405774715,1771296638051,-577.28785722,9.994e-05,2]
[405774716,1771296638062,-500.0,9.994e-05,2]
[405774717,1771296638072,-263.42538756,9.994e-05,2]
[405774718,1771296638082,-500.0,9.994e-05,2]
[405774719,1771296638092,-500.0,9.994e-05,2]
[405774720,1771296638103,-500.0,9.994e-05,2]
[405774721,1771296638113,-500.0,9.994e-05,2]
[405774722,1771296638124,-500.0,9.994e-05,2]
[405774723,1771296638134,-500.0,9.994e-05,2]
[405774724,1771296638144,-500.0,9.994e-05,2]
[405774725,1771296638155,-565.83656901,9.994e-05,2]
[405774726,1771296638164,-500.0,9.994e-05,2]
[405774727,1771296638174,-500.0,9.994e-05,2]
[405774728,1771296638184,-395.8150033,9.994e-05,2]
[405774729,1771296638194,-500.0,9.994e-05,2]
[405774730,1771296638204,-550.77300573,9.994e-05,2]
[405774731,1771296638213,-500.0,9.994e-05,2]
[405774732,1771296638223,-500.0,9.994e-05,2]
[405774733,1771296638233,-500.0,9.994e-05,2]
[405774734,1771296638243,-630.25413496,9.994e-05,2]
[405774735,1771296638253,-150.0,9.994e-05,2]
[405774736,1771296638263,-266.0,9.994e-05,2]
[405774737,1771296638273,-250.0,9.994e-05,2]
[405774738,1771296638283,-3500000.0,9.995e-05,2]
[405774739,1771296638293,-2500.0,9.995e-05,2]
[405774740,1771296638303,-4587.476,9.995e-05,2]
[405774741,1771296638313,-2032.9993,9.995e-05,2]
[405774742,1771296638324,-26729.3122,9.995e-05,2]
[405774743,1771296638334,-227.20890356,9.995e-05,2]
[405774744,1771296638344,-274.0,0.0001,2]
[405774745,1771296638354,-174.44086209,0.0001,2]
[405774746,1771296638365,-174.44086209,0.0001,2]
[405774747,1771296638375,-1488.83065608,0.0001,2]
[405774748,1771296638385,-763.92788936,0.0001,2]
[405774749,1771296638395,-500.0,0.00010089,2]
[405774750,1771296638406,-500.0,0.00010099,2]
[405774751,1771296638416,-500.0,0.00010099,2]
[405774752,1771296638426,-274.0,0.00010368,2]
[405774753,1771296638436,-500.0,0.00010373,2]
[405774754,1771296638446,-200.0,0.00010439,2]
[405774755,1771296638456,-500.0,0.00010637,2]
[405774756,1771296638467,-500.0,0.00010647,2]
[405774757,1771296638477,-763.92788936,0.00010881,2]
[405774758,1771296638487,-276.85061866,0.00010886,2]
[405774759,1771296638497,-999.99,0.000109,2]
[405774760,1771296638508,-5300.13656816,0.000109,2]
[405774761,1771296638518,-500.0,0.00010921,2]
[405774762,1771296638528,-150.0,0.00010959,2]
[405774763,1771296638538,-500.81972658,0.00010973,2]
[405774764,1771296638548,-500.0,0.00010973,2]
[405774765,1771296638558,-501.16029055,0.00010973,2]
[405774766,1771296638569,-503.06752739,0.00010973,2]
[405774767,1771296638580,-502.12798245,0.00010973,2]
[405774768,1771296638591,-500.32111708,0.00010973,2]
[405774769,1771296638601,-500.0,0.00010973,2]
[405774770,1771296638612,-500.0,0.00010973,2]
[405774771,1771296638622,-500.86147052,0.00010973,2]
[405774772,1771296638632,-239.8459294,0.00010973,2]
[405774773,1771296638643,-150.99,0.0001099,2]
[405774774,1771296638653,-299.99,0.0001099,2]
[405774775,1771296638663,-9999.99,0.0001099,2]
[405774776,1771296638674,-150.99,0.0001099,2]
[405774777,1771296638684,-257.4,0.00010991,2]
[405774778,1771296638694,-500.0,0.00010991,2]
[405774779,1771296638704,-500.0,0.00010991,2]
[405774780,1771296638714,-500.0,0.00010991,2]
[405774781,1771296638724,-500.0,0.00010991,2]
[405774782,1771296638735,-500.0,0.00010991,2]
[405774783,1771296638745,-500.0,0.00010991,2]
[405774784,1771296638755,-577.99178401,0.00010991,2]
[405774785,1771296638767,-151.0,0.00010991,2]
[405774786,1771296638777,-500.0,0.00010991,2]
[405774787,1771296638788,-151.0,0.00010991,2]
[405774788,1771296638798,-151.0,0.00010991,2]
[405774789,1771296638808,-500.0,0.00010991,2]
[405774790,1771296638818,-500.0,0.00010991,2]
[405774791,1771296638828,-151.0,0.00010991,2]
[405774792,1771296638838,-500.0,0.00010991,2]
[405774793,1771296638848,-151.0,0.00010991,2]
[405774794,1771296638858,-500.0,0.00010991,2]
[405774795,1771296638869,-151.0,0.00010991,2]
[405774796,1771296638878,-500.0,0.00010991,2]
[405774797,1771296638889,-151.0,0.00010991,2]
[405774798,1771296638899,-500.0,0.00010991,2]
[405774799,1771296638909,-151.0,0.00010991,2]
[405774800,1771296638919,-500.0,0.00010991,2]
[405774801,1771296638929,-151.0,0.00010991,2]
[405774802,1771296638939,-500.0,0.00010991,2]
[405774803,1771296638952,-151.0,0.00010991,2]
[405774804,1771296638963,-151.0,0.00010991,2]
[405774805,1771296638973,-151.0,0.00010991,2]
[405774806,1771296638982,-151.0,0.00010991,2]
[405774807,1771296638993,-151.0,0.00010991,2]
[405774808,1771296639003,-151.0,0.00010991,2]
[405774809,1771296639014,-151.0,0.00010991,2]
[405774810,1771296639027,-151.0,0.00010991,2]
[405774811,1771296639037,-151.0,0.00010991,2]
[405774812,1771296639047,-151.0,0.00010991,2]
[405774813,1771296639057,-151.0,0.00010991,2]
[405774814,1771296639068,-151.0,0.00010991,2]
[405774815,1771296639078,-151.0,0.00010991,2]
[405774816,1771296639088,-151.0,0.00010991,2]
[405774817,1771296639098,-151.0,0.00010991,2]
[405774818,1771296639108,-151.0,0.00010991,2]
[405774819,1771296639119,-151.0,0.00010991,2]
[405774820,1771296639129,-151.0,0.00010991,2]
[405774821,1771296639139,-151.0,0.00010991,2]
[405774822,1771296639149,-151.0,0.00010991,2]
[405774823,1771296639160,-151.0,0.00010991,2]
[405774824,1771296639171,-151.0,0.00010991,2]
[405774825,1771296639181,-200.0,0.00010991,2]
[405774826,1771296639192,-1680.0,0.00010992,2]
[405774827,1771296639203,-420.0,0.00010992,2]
[405774828,1771296639213,-5147.50813388,0.00010992,2]
[405774829,1771296639222,-255.0,0.00010993,2]
[405774830,1771296639232,-250.0,0.00010993,2]
[405774831,1771296639243,-417.265,0.00010997,2]
[405774832,1771296639253,-4897.327,0.00010997,2]
[405774833,1771296639263,-288.0,0.00010998,2]
[405774834,1771296639273,-155.0,0.00010998,2]
[405774835,1771296639283,-195.0,0.00010999,2]
[405774836,1771296639293,-195.0,0.00010999,2]
[405774837,1771296639303,-195.0,0.00010999,2]
[405774838,1771296639314,-250.0,0.00010999,2]
[405774839,1771296639323,-195.0,0.00010999,2]
[405774840,1771296639334,-195.0,0.00010999,2]
[405774841,1771296639344,-1000.0,0.00010999,2]
[405774842,1771296639353,-32850.4601,0.00010999,2]
[405774843,1771296639364,-500.0,0.00011,2]
[405774844,1771296639373,-255.0,0.00011,2]
[405774845,1771296639383,-5300.13656815,0.00011039,2]
[405774846,1771296639393,-11494.0791708,0.0001109,2]
[405774847,1771296639403,-304123.0174945,0.0001109,2]
[405774848,1771296639412,-188837.0211984,0.0001109,2]
[405774849,1771296639422,-222.0,0.00011092,2]
[405774850,1771296639432,-188.0,0.00011092,2]
[405774851,1771296639442,-829.56580145,0.00011098,2]
[405774852,1771296639452,-609.52608378,0.00011098,2]
[405774853,1771296639462,-1361.79834297,0.00011099,2]
[405774854,1771296639472,-1361.79834295,0.00011099,2]
[405774856,1771296639481,-12884.2191167,0.00011099,2]
[405774858,1771296639492,-155.0,0.00011099,2]
[405774860,1771296639501,-105669.0788702,0.00011099,2]
[405774862,1771296639511,-181.74,0.000111,2]
[405774864,1771296639521,-500.0,0.00011185,2]
[405774866,1771296639531,-500.0,0.00011195,2]
[405774867,1771296639541,-500.0,0.00011469,2]
[405774869,1771296639551,-838.61447056,0.00011497,2]
[405774871,1771296639561,-500.0,0.000115,2]
[405774873,1771296639571,-1000.0,0.00011521,2]
[405774876,1771296639581,-643.23767655,0.00011521,2]
[405774878,1771296639590,-1000.0,0.00011521,2]
[405774880,1771296639601,-200.0,0.00011539,2]
[405774882,1771296639611,-500.0,0.00011733,2]
[405774884,1771296639621,-504.47430688,0.00011743,2]
[405774886,1771296639631,-1361.79834295,0.00011755,2]
[405774888,1771296639641,-500.0,0.000119,2]
[405774890,1771296639650,-150.0,0.00011925,2]
[405774892,1771296639660,-632.57651017,0.00012066,2]
[405774894,1771296639671,-1500.0,0.00012068,2]
[405774895,1771296639681,-1500.0,0.00012068,2]
[405774896,1771296639692,-150.0,0.00012085,2]
[405774897,1771296639702,-200.0,0.00012087,2]
[405774898,1771296639712,-23577.958491,0.00012089,2]
[405774900,1771296639722,-2351.0,0.00012091,2]
[405774902,1771296639732,-587.0,0.00012091,2]
[405774904,1771296639742,-433.0,0.00012092,2]
[405774906,1771296639752,-500.0,0.000121,2]
[405774908,1771296639762,-9707.12239043,0.00012178,2]
[405774910,1771296639773,-5300.13656815,0.00012182,2]
[405774912,1771296639783,-5712.22,0.00012201,2]
[405774914,1771296639793,-500.0,0.00012281,2]
[405774916,1771296639802,-5260.953654,0.00012309,2]
[405774918,1771296639812,-250.0,0.00012463,2]
[405774920,1771296639821,-2000.0,0.00012616,2]
[405774922,1771296639831,-368.72151799,0.00012616,2]
[405774923,1771296639841,-1361.79834295,0.00012633,2]
[405774924,1771296639850,-200.0,0.00012635,2]
[405774925,1771296639859,-1852.42,0.00012741,2]
[405774926,1771296639868,-503.55960548,0.00012829,2]
[405774928,1771296639878,-70181.97252511,0.000129,2]
[405774930,1771296639888,-2874.8578749,0.00013104,2]
[405774932,1771296639897,-2500.0,0.00013164,2]
[405774934,1771296639907,-152.46,0.0001318,2]
[405774936,1771296639916,-200.0,0.00013183,2]
[405774938,1771296639926,-632.57651017,0.00013233,2]
[405774939,1771296639935,-2564.6757261,0.00013289,2]
[405774941,1771296639946,-67859.0175983,0.00013296,2]
[405774942,1771296639956,-42135.2347819,0.00013296,2]
[405774943,1771296639965,-3292.0,0.000133,2]
[405774944,1771296639976,-823.0,0.000133,2]
[405774945,1771296639986,-736.0,0.00013302,2]
[405774946,1771296639998,-5300.13656815,0.00013326,2]
[405774947,1771296640008,-3240.0,0.00013425,2]
[405774948,1771296640020,-1000.0,0.00013507,2]
[405774949,1771296640032,-1361.79834295,0.00013511,2]
[405774950,1771296640043,-641.467498,0.00013551,2]
[405774951,1771296640052,-456.05800986,0.00013698,2]
[405774952,1771296640063,-419.06798032,0.00013698,2]
[405774953,1771296640073,-500.0,0.00013698,2]
[405774954,1771296640083,-500.0,0.00013698,2]
[405774955,1771296640094,-500.0,0.00013698,2]
[405774956,1771296640104,-500.0,0.00013698,2]
[405774957,1771296640113,-500.0,0.00013698,2]
[405774958,1771296640123,-500.0,0.00013698,2]
[405774959,1771296640133,-500.0,0.00013698,2]
[405774960,1771296640143,-500.0,0.00013698,2]
[405774961,1771296640153,-500.0,0.00013698,2]
[405774962,1771296640163,-500.0,0.00013698,2]
[405774963,1771296640172,-500.0,0.00013698,2]
[405774964,1771296640182,-500.0,0.00013698,2]
[405774965,1771296640192,-500.0,0.00013698,2]
[405774966,1771296640201,-500.0,0.00013698,2]
[405774967,1771296640211,-500.0,0.00013698,2]
[405774968,1771296640220,-376.25508189,0.00013698,2]
[405774969,1771296640230,-500.0,0.00013698,2]
[405774970,1771296640240,-500.0,0.00013698,2]
[405774971,1771296640250,-500.0,0.00013698,2]
[405774972,1771296640259,-500.0,0.00013698,2]
[405774973,1771296640269,-500.0,0.00013698,2]
[405774974,1771296640279,-500.0,0.00013698,2]
[405774975,1771296640289,-500.0,0.00013698,2]
[405774976,1771296640299,-500.0,0.00013698,2]
[405774977,1771296640309,-500.0,0.00013698,2]
[405774978,1771296640318,-500.0,0.00013698,2]
[405774979,1771296640328,-500.0,0.00013698,2]
[405774980,1771296640337,-500.0,0.00013698,2]
[405774981,1771296640632,-500.0,0.00013698,2]
[405774982,1771296640642,-500.0,0.00013698,2]
[405774983,1771296640651,-500.0,0.00013698,2]
[405774984,1771296640661,-500.0,0.00013698,2]
[405774985,1771296640672,-503.24510855,0.00013698,2]
[405774986,1771296640682,-500.0,0.00013698,2]
[405774987,1771296640691,-500.0,0.00013698,2]
[405774988,1771296640702,-500.0,0.00013698,2]
[405774989,1771296640712,-205.75338066,0.00013698,2]
[405774990,1771296640722,-500.0,0.00013698,2]
[405774991,1771296640732,-500.0,0.00013698,2]
[405774992,1771296640742,-400.27334963,0.00013698,2]
[405774993,1771296640752,-915.21,0.00013698,2]
[405774994,1771296640762,-915.21,0.00013698,2]
[405774995,1771296640772,-915.21,0.00013698,2]
[405774996,1771296640782,-915.21,0.00013698,2]
[405774997,1771296640792,-915.21,0.00013698,2]
[405774998,1771296640802,-915.21,0.00013698,2]
[405774999,1771296640812,-915.21,0.00013698,2]
[405775000,1771296640822,-915.21,0.00013698,2]
[405775001,1771296640831,-915.21,0.00013698,2]
[405775002,1771296640841,-915.21,0.00013698,2]
[405775003,1771296640851,-915.21,0.00013698,2]
[405775004,1771296640860,-915.21,0.00013698,2]
[405775005,1771296640870,-915.21,0.00013698,2]
[405775006,1771296640880,-915.21,0.00013698,2]
[405775007,1771296640889,-915.21,0.00013698,2]
[405775008,1771296640899,-915.21,0.00013698,2]
[405775009,1771296640909,-915.21,0.00013698,2]
[405775010,1771296640919,-915.21,0.00013698,2]
[405775011,1771296640928,-391.72,0.00013699,2]
[405775012,1771296640938,-712.99,0.00013699,2]
[405775013,1771296640948,-183.74,0.00013699,2]
[405775014,1771296640958,-3000.0,0.00013712,2]
[405775015,1771296640968,-201.41552809,0.00013731,2]
[405775016,1771296640978,-572.2565055,0.0001378,2]
[405775017,1771296640988,-915.21,0.00013787,2]
[405775018,1771296640998,-15141.3934642,0.00013788,2]
[405775019,1771296641008,-9401.6416847,0.00013788,2]
[405775020,1771296641018,-6782.81,0.00013893,2]
[405775021,1771296641033,-1488.83065607,0.00013898,2]
[405775022,1771296641043,-227.20890354,0.00013898,2]
[405775023,1771296641053,-2145.41,0.00014211,2]
[405775024,1771296641064,-2795.38,0.00014247,2]
[405775025,1771296641075,-846.3153877,0.0001426,2]
[405775026,1771296641085,-293.87,0.00014338,2]
[405775027,1771296641094,-391.72,0.00014384,2]
[405775028,1771296641106,-1361.79834295,0.00014388,2]
[405775029,1771296641117,-7658.84032483,0.0001439,2]
[405775030,1771296641127,-632.57651017,0.000144,2]
[405775031,1771296641137,-5300.13656815,0.00014469,2]
[405775032,1771296641146,-4609.0,0.0001463,2]
[405775033,1771296641156,-1152.0,0.0001463,2]
[405775034,1771296641165,-1252.0,0.00014631,2]
[405775035,1771296641175,-151.0,0.00014634,2]
[405775036,1771296641184,-151.0,0.00014634,2]
[405775037,1771296641194,-161.76553767,0.00014999,2]
[405775038,1771296641203,-2055.50045313,0.00015,2]
[405775039,1771296641213,-8002.23365242,0.00015,2]
[405775040,1771296641222,-418.83903334,0.00015,2]
[405775041,1771296641232,-70000.0,0.00015,2]
[405775042,1771296641243,-250.0,0.00015,2]
[405775043,1771296641253,-391.72,0.00015068,2]
[405775044,1771296641264,-1000.0,0.00015195,2]
[405775045,1771296641283,-1361.79834295,0.00015266,2]
[405775046,1771296641303,-1517.64,0.000153,2]
[405775047,1771296641318,-509.61038486,0.000154,2]
[405775048,1771296641329,-1396.931981,0.0001552,7]
[405775049,1771296641340,-464.197079,0.0001552,7]
[405775050,1771296641351,-632.57651017,0.00015566,2]
[405775051,1771296641362,-5300.13656815,0.00015613,2]
[405775052,1771296641373,-4112.313913,0.00015616,7]
[405775053,1771296641384,-1371.360634,0.00015616,7]
[405775054,1771296641395,-391.72,0.00015753,2]
[405775055,1771296641404,-2245.73805852,0.00015807,2]
[405775056,1771296641416,-5000.0,0.0001596,2]
[405775057,1771296641426,-303.26122484,0.00016,2]
[405775058,1771296641436,-6453.0,0.00016093,2]
[405775059,1771296641445,-1613.0,0.00016093,2]
[405775060,1771296641456,-343.0,0.000161,2]
[405775061,1771296641468,-1361.79834295,0.00016144,2]
[405775062,1771296641478,-200.0,0.0001634,2]
[405775063,1771296641488,-391.72,0.00016438,2]
[405775064,1771296641499,-173.57638878,0.00016648,2]
[405775065,1771296641509,-160.0,0.00016648,2]
[405775066,1771296641520,-166.66,0.00016701,2]
[405775067,1771296641531,-159.43,0.00016712,2]
[405775068,1771296641542,-632.57651017,0.00016733,2]
[405775069,1771296641553,-5300.13656815,0.00016756,2]
[405775070,1771296641564,-63973.0,0.000168,2]
[405775071,1771296641575,-1000.0,0.00016883,2]
[405775072,1771296641586,-550.98049433,0.00016889,7]
[405775073,1771296641596,-151.0,0.00016997,2]
[405775074,1771296641608,-915.21,0.00016999,2]
[405775075,1771296641620,-915.21,0.00016999,2]
[405775076,1771296641631,-915.21,0.00016999,2]
[405775077,1771296641642,-915.21,0.00016999,2]
[405775078,1771296641653,-915.2263384,0.00016999,2]